fUSD/lending_fUSD_20250123
["ID","MTS","AMOUNT","RATE_DAILY","PERIOD"]
[350141123,1737649855238,-244.0,0.0001814,2]
[350141124,1737649855248,-500.0,0.0001815,2]
[350141125,1737649855258,-452.764009,0.0001815,2]
[350141126,1737649855269,-500.0,0.0001815,2]
[350141127,1737649855278,-505.42,0.0001815,2]
[350141128,1737649855287,-278.061044,0.0001815,2]
[350141129,1737649855298,-793.57,0.0001815,2]
[350141130,1737649855307,-500.0,0.0001815,2]
[350141131,1737649855318,-1666.21,0.0001815,2]
[350141132,1737649855327,-633.72,0.0001815,2]
[350141133,1737649855337,-784.7,0.0001815,2]
[350141134,1737649855354,-1227.74,0.0001815,2]
[350141135,1737649855364,-811.43,0.0001815,2]
[350141136,1737649855374,-1177.29,0.0001815,2]
[350141137,1737649855383,-500.0,0.0001815,2]
[350141138,1737649855392,-508.16,0.0001815,2]
[350141139,1737649855401,-1189.48,0.0001815,2]
[350141140,1737649855411,-593.34,0.0001815,2]
[350141141,1737649855420,-911.17,0.0001815,2]
[350141142,1737649855429,-534.84,0.0001815,2]
[350141143,1737649855438,-1547.12,0.0001815,2]
[350141144,1737649855447,-440.08753853,0.00018151,2]
[350141145,1737649855456,-500.0,0.00018151,2]
[350141146,1737649855466,-474.12,0.00018151,2]
[350141147,1737649855475,-500.0,0.00018151,2]
[350141148,1737649855484,-632.83686978,0.00018151,2]
[350141149,1737649855493,-500.0,0.00018151,2]
[350141150,1737649855503,-500.0,0.00018151,2]
[350141151,1737649855513,-500.0,0.00018151,2]
[350141152,1737649855528,-500.0,0.00018151,2]
[350141153,1737649855538,-824.5,0.00018151,2]
[350141154,1737649855547,-500.0,0.00018151,2]
[350141155,1737649855559,-500.0,0.00018151,2]
[350141156,1737649855568,-657.94,0.00018151,2]
[350141157,1737649855577,-1263.57,0.00018151,2]
[350141158,1737649855587,-927.43,0.00018151,2]
[350141159,1737649855596,-500.0,0.00018151,2]
[350141160,1737649855605,-500.0,0.00018151,2]
[350141161,1737649855614,-1727.96,0.00018151,2]
[350141162,1737649855623,-548.38,0.00018151,2]
[350141163,1737649855632,-2478.47,0.00018151,2]
[350141164,1737649855643,-505.2,0.00018151,2]
[350141165,1737649855652,-500.0,0.00018151,2]
[350141166,1737649855662,-500.0,0.00018151,2]
[350141167,1737649855671,-655.25,0.00018151,2]
[350141168,1737649855680,-871.19,0.00018151,2]
[350141169,1737649855691,-685.35,0.00018151,2]
[350141170,1737649855700,-510.83,0.00018151,2]
[350141171,1737649855709,-500.0,0.00018151,2]
[350141172,1737649855719,-752.05,0.00018151,2]
[350141173,1737649855728,-500.0,0.00018151,2]
[350141174,1737649855738,-500.0,0.00018151,2]
[350141175,1737649855748,-500.0,0.00018151,2]
[350141176,1737649855757,-2502.39,0.00018151,2]
[350141177,1737649855768,-500.0,0.00018152,2]
[350141178,1737649855778,-500.0,0.00018152,2]
[350141179,1737649855788,-500.0,0.00018152,2]
[350141180,1737649855800,-500.0,0.00018152,2]
[350141181,1737649855813,-500.0,0.00018152,2]
[350141182,1737649855824,-500.0,0.00018152,2]
[350141183,1737649855833,-545.76,0.00018152,2]
[350141184,1737649855843,-500.0,0.00018152,2]
[350141185,1737649855853,-500.0,0.00018152,2]
[350141186,1737649855865,-538.2,0.00018152,2]
[350141187,1737649855877,-500.0,0.00018152,2]
[350141188,1737649855887,-525.23894584,0.00018152,2]
[350141189,1737649855896,-500.0,0.00018152,2]
[350141190,1737649855907,-443.26,0.00018152,2]
[350141191,1737649855916,-509.85747303,0.00018152,2]
[350141192,1737649855925,-500.0,0.00018152,2]
[350141193,1737649855935,-500.0,0.00018152,2]
[350141194,1737649855946,-500.0,0.00018152,2]
[350141195,1737649855956,-500.0,0.00018152,2]
[350141196,1737649855965,-500.0,0.00018152,2]
[350141197,1737649855974,-500.0,0.00018152,2]
[350141198,1737649855983,-500.0,0.00018152,2]
[350141199,1737649855992,-482.35,0.00018152,2]
[350141200,1737649856002,-381.52794962,0.00018152,2]
[350141201,1737649856011,-233.25710655,0.00018152,2]
[350141202,1737649856021,-500.0,0.00018152,2]
[350141203,1737649856030,-500.0,0.00018152,2]
[350141204,1737649856039,-500.0,0.00018152,2]
[350141205,1737649856048,-647.38336714,0.00018152,2]
[350141206,1737649856057,-500.0,0.00018152,2]
[350141207,1737649856067,-500.0,0.00018152,2]
[350141208,1737649856075,-547.74959117,0.00018152,2]
[350141209,1737649856085,-500.0,0.00018152,2]
[350141210,1737649856093,-500.0,0.00018152,2]
[350141211,1737649856102,-500.0,0.00018152,2]
[350141212,1737649856111,-530.08296691,0.00018152,2]
[350141213,1737649856120,-435.26,0.00018152,2]
[350141214,1737649856130,-500.0,0.00018152,2]
[350141215,1737649856139,-500.0,0.00018152,2]
[350141216,1737649856148,-500.0,0.00018152,2]
[350141217,1737649856157,-500.0,0.00018152,2]
[350141218,1737649856166,-500.0,0.00018152,2]
[350141219,1737649856175,-500.0,0.00018152,2]
[350141220,1737649856184,-159.58664509,0.00018152,2]
[350141221,1737649856194,-607.92225424,0.00018152,2]
[350141222,1737649856203,-500.0,0.00018152,2]
[350141223,1737649856213,-500.0,0.00018152,2]
[350141224,1737649856222,-500.0,0.00018152,2]
[350141225,1737649856231,-595.13,0.00018152,2]
[350141226,1737649856240,-500.0,0.00018152,2]
[350141227,1737649856249,-500.0,0.00018152,2]
[350141228,1737649856258,-500.0,0.00018152,2]
[350141229,1737649856268,-500.0,0.00018152,2]
[350141230,1737649856277,-500.0,0.00018152,2]
[350141231,1737649856287,-500.0,0.00018152,2]
[350141232,1737649856296,-500.0,0.00018152,2]
[350141233,1737649856306,-500.0,0.00018152,2]
[350141234,1737649856315,-500.0,0.00018152,2]
[350141235,1737649856325,-500.0,0.00018152,2]
[350141236,1737649856341,-500.0,0.00018152,2]
[350141237,1737649856350,-500.0,0.00018152,2]
[350141238,1737649856359,-474.472841,0.00018152,2]
[350141239,1737649856369,-500.0,0.00018152,2]
[350141240,1737649856378,-500.0,0.00018152,2]
[350141241,1737649856387,-500.0,0.00018152,2]
[350141242,1737649856396,-500.0,0.00018152,2]
[350141243,1737649856405,-518.63952643,0.00018152,2]
[350141244,1737649856414,-500.0,0.00018152,2]
[350141245,1737649856423,-551.30588345,0.00018152,2]
[350141246,1737649856433,-500.0,0.00018152,2]
[350141247,1737649856443,-500.0,0.00018152,2]
[350141248,1737649856452,-500.0,0.00018152,2]
[350141249,1737649856461,-500.0,0.00018152,2]
[350141250,1737649856470,-500.0,0.00018152,2]
[350141251,1737649856479,-500.0,0.00018152,2]
[350141252,1737649856489,-500.0,0.00018152,2]
[350141253,1737649856498,-500.0,0.00018152,2]
[350141254,1737649856508,-500.0,0.00018152,2]
[350141255,1737649856522,-375.0,0.00018152,2]
[350141256,1737649856531,-500.0,0.00018152,2]
[350141257,1737649856540,-2076.69,0.00018152,2]
[350141258,1737649856551,-628.58,0.00018152,2]
[350141259,1737649856560,-465.82466327,0.00018152,2]
[350141260,1737649856569,-500.0,0.00018152,2]
[350141261,1737649856579,-407.75797277,0.00018152,2]
[350141262,1737649856588,-500.0,0.00018152,2]
[350141263,1737649856597,-500.0,0.00018152,2]
[350141264,1737649856608,-1165.29,0.00018152,2]
[350141265,1737649856617,-500.0,0.00018152,2]
[350141266,1737649856626,-590.44,0.00018152,2]
[350141267,1737649856635,-500.0,0.00018152,2]
[350141268,1737649856645,-500.0,0.00018152,2]
[350141269,1737649856655,-658.97,0.00018152,2]
[350141270,1737649856664,-500.0,0.00018152,2]
[350141271,1737649856674,-500.0,0.00018152,2]
[350141272,1737649856683,-500.0,0.00018152,2]
[350141273,1737649856693,-500.0,0.00018152,2]
[350141274,1737649856702,-500.0,0.00018152,2]
[350141275,1737649856712,-811.15,0.00018152,2]
[350141276,1737649856721,-500.0,0.00018152,2]
[350141277,1737649856730,-500.0,0.00018152,2]
[350141278,1737649856740,-500.0,0.00018152,2]
[350141279,1737649856749,-829.28,0.00018152,2]
[350141280,1737649856759,-500.0,0.00018152,2]
[350141281,1737649856768,-500.0,0.00018152,2]
[350141282,1737649856777,-500.0,0.00018152,2]
[350141283,1737649856786,-1000.0,0.00018152,2]
[350141284,1737649856795,-500.0,0.00018152,2]
[350141285,1737649856804,-736.71,0.00018152,2]
[350141286,1737649856813,-500.0,0.00018152,2]
[350141287,1737649856823,-500.0,0.00018152,2]
[350141288,1737649856832,-500.0,0.00018152,2]
[350141289,1737649856841,-500.0,0.00018152,2]
[350141290,1737649856850,-500.0,0.00018152,2]
[350141291,1737649856861,-500.0,0.00018152,2]
[350141292,1737649856871,-500.0,0.00018152,2]
[350141293,1737649856881,-577.91325121,0.00018152,2]
[350141294,1737649856891,-500.0,0.00018152,2]
[350141295,1737649856901,-800.07,0.00018152,2]
[350141296,1737649856910,-530.33,0.00018152,2]
[350141297,1737649856920,-500.0,0.00018152,2]
[350141298,1737649856930,-500.0,0.00018152,2]
[350141299,1737649856940,-500.0,0.00018152,2]
[350141300,1737649856949,-500.0,0.00018152,2]
[350141301,1737649856959,-500.0,0.00018152,2]
[350141302,1737649856969,-874.38,0.00018152,2]
[350141303,1737649856979,-500.0,0.00018152,2]
[350141304,1737649856988,-500.0,0.00018152,2]
[350141305,1737649856998,-500.0,0.00018152,2]
[350141306,1737649857007,-500.0,0.00018152,2]
[350141307,1737649857017,-500.0,0.00018152,2]
[350141308,1737649857029,-500.0,0.00018152,2]
[350141309,1737649857040,-500.0,0.00018152,2]
[350141310,1737649857051,-500.0,0.00018152,2]
[350141311,1737649857061,-575.81148993,0.00018152,2]
[350141312,1737649857071,-500.0,0.00018152,2]
[350141313,1737649857080,-500.0,0.00018152,2]
[350141314,1737649857090,-500.0,0.00018152,2]
[350141315,1737649857100,-500.0,0.00018152,2]
[350141316,1737649857109,-500.0,0.00018152,2]
[350141317,1737649857118,-500.0,0.00018152,2]
[350141318,1737649857131,-500.0,0.00018152,2]
[350141319,1737649857142,-500.0,0.00018152,2]
[350141320,1737649857152,-500.0,0.00018152,2]
[350141321,1737649857162,-642.43,0.00018152,2]
[350141322,1737649857171,-500.0,0.00018152,2]
[350141323,1737649857180,-500.0,0.00018152,2]
[350141324,1737649857189,-500.0,0.00018152,2]
[350141325,1737649857200,-500.0,0.00018152,2]
[350141326,1737649857319,-500.0,0.00018152,2]
[350141327,1737649857329,-500.0,0.00018152,2]
[350141328,1737649857339,-500.0,0.00018152,2]
[350141329,1737649857349,-517.21,0.00018152,2]
[350141330,1737649857359,-500.0,0.00018152,2]
[350141331,1737649857369,-500.0,0.00018152,2]
[350141332,1737649857378,-1130.41,0.00018152,2]
[350141333,1737649857387,-500.0,0.00018152,2]
[350141334,1737649857396,-500.0,0.00018152,2]
[350141335,1737649857406,-500.0,0.00018152,2]
[350141336,1737649857416,-2840.42,0.00018152,2]
[350141337,1737649857426,-500.0,0.00018152,2]
[350141338,1737649857435,-500.0,0.00018152,2]
[350141339,1737649857445,-500.0,0.00018152,2]
[350141340,1737649857455,-500.0,0.00018152,2]
[350141341,1737649857465,-649.59,0.00018152,2]
[350141342,1737649857474,-569.84,0.00018152,2]
[350141343,1737649857484,-262.99466134,0.00018152,2]
[350141344,1737649857494,-175.49556184,0.00018152,2]
[350141345,1737649857504,-576.33,0.00018152,2]
[350141346,1737649857516,-500.0,0.00018152,2]
[350141347,1737649857533,-500.0,0.00018152,2]
[350141348,1737649857543,-500.0,0.00018152,2]
[350141349,1737649857552,-872.83,0.00018152,2]
[350141350,1737649857562,-500.0,0.00018152,2]
[350141351,1737649857571,-500.0,0.00018152,2]
[350141352,1737649857580,-500.0,0.00018153,2]
[350141353,1737649857590,-500.0,0.00018153,2]
[350141354,1737649857601,-370.32772324,0.00018153,2]
[350141355,1737649857610,-500.0,0.00018153,2]
[350141356,1737649857619,-414.62211307,0.00018153,2]
[350141357,1737649857628,-500.0,0.00018153,2]
[350141358,1737649857639,-517.88483289,0.00018153,2]
[350141359,1737649857648,-500.0,0.00018153,2]
[350141360,1737649857658,-500.0,0.00018153,2]
[350141361,1737649857667,-500.0,0.00018153,2]
[350141362,1737649857676,-500.0,0.00018153,2]
[350141363,1737649857686,-500.0,0.00018153,2]
[350141364,1737649857695,-500.0,0.00018153,2]
[350141365,1737649857705,-459.29268303,0.00018153,2]
[350141366,1737649857714,-405.62904079,0.00018153,2]
[350141367,1737649857723,-500.0,0.00018154,2]
[350141368,1737649857733,-1313.1570865,0.00018158,2]
[350141369,1737649857742,-169.091,0.00018232,2]
[350141370,1737649857752,-1188.58,0.00018232,2]
[350141371,1737649857763,-1062.07364942,0.00018279,2]
[350141372,1737649857778,-151.22,0.000183,2]
[350141373,1737649857787,-151.22,0.000183,2]
[350141374,1737649857797,-151.22,0.000183,2]
[350141375,1737649857807,-151.22,0.000183,2]
[350141376,1737649857817,-151.22,0.000183,2]
[350141377,1737649857826,-151.22,0.000183,2]
[350141378,1737649857836,-151.22,0.000183,2]
[350141379,1737649857846,-151.22,0.000183,2]
[350141380,1737649857856,-151.22,0.000183,2]
[350141381,1737649857865,-151.22,0.000183,2]
[350141382,1737649857875,-151.22,0.000183,2]
[350141383,1737649857884,-1313.1570865,0.00018343,2]
[350141384,1737649857894,-500.0,0.00018356,2]
[350141385,1737649857903,-521.44,0.00018356,2]
[350141386,1737649857912,-1279.29,0.00018356,2]
[350141387,1737649857922,-510.28,0.00018356,2]
[350141388,1737649857932,-947.08,0.00018356,2]
[350141389,1737649857942,-553.6,0.00018356,2]
[350141390,1737649857951,-847.08,0.00018356,2]
[350141391,1737649857961,-950.19,0.00018356,2]
[350141392,1737649857970,-595.85,0.00018356,2]
[350141393,1737649857979,-535.73,0.00018356,2]
[350141394,1737649857988,-1421.67,0.00018356,2]
[350141395,1737649857997,-500.0,0.00018356,2]
[350141396,1737649858007,-1179.67,0.00018356,2]
[350141397,1737649858016,-500.0,0.00018356,2]
[350141398,1737649858028,-1476.14,0.00018356,2]
[350141399,1737649858038,-977.58,0.00018356,2]
[350141400,1737649858047,-578.01,0.00018356,2]
[350141401,1737649858057,-500.0,0.00018356,2]
[350141402,1737649858067,-500.0,0.00018356,2]
[350141403,1737649858077,-1107.03,0.00018356,2]
[350141404,1737649858086,-161.97635103,0.00018356,2]
[350141405,1737649858096,-500.0,0.00018356,2]
[350141406,1737649858105,-502.76,0.00018356,2]
[350141407,1737649858114,-500.0,0.00018356,2]
[350141408,1737649858124,-1000.0,0.00018374,2]
[350141409,1737649858133,-500.0,0.00018424,2]
[350141410,1737649858142,-452.764009,0.00018424,2]
[350141411,1737649858153,-500.0,0.00018424,2]
[350141412,1737649858162,-505.42,0.00018424,2]
[350141413,1737649858171,-278.061044,0.00018424,2]
[350141414,1737649858180,-793.57,0.00018424,2]
[350141415,1737649858189,-500.0,0.00018424,2]
[350141416,1737649858199,-1666.21,0.00018424,2]
[350141417,1737649858208,-633.72,0.00018424,2]
[350141418,1737649858217,-784.7,0.00018424,2]
[350141419,1737649858226,-1227.74,0.00018424,2]
[350141420,1737649858235,-811.43,0.00018424,2]
[350141421,1737649858245,-1177.29,0.00018424,2]
[350141422,1737649858254,-500.0,0.00018424,2]
[350141423,1737649858263,-508.16,0.00018424,2]
[350141424,1737649858274,-1189.48,0.00018424,2]
[350141425,1737649858283,-593.34,0.00018424,2]
[350141426,1737649858293,-911.17,0.00018424,2]
[350141427,1737649858303,-534.84,0.00018424,2]
[350141428,1737649858313,-1547.12,0.00018424,2]
[350141429,1737649858322,-500.0,0.00018425,2]
[350141430,1737649858332,-500.0,0.00018425,2]
[350141431,1737649858342,-500.0,0.00018425,2]
[350141432,1737649858351,-500.0,0.00018425,2]
[350141433,1737649858360,-500.0,0.00018425,2]
[350141434,1737649858370,-500.0,0.00018425,2]
[350141435,1737649858379,-824.5,0.00018425,2]
[350141436,1737649858388,-500.0,0.00018425,2]
[350141437,1737649858398,-657.94,0.00018425,2]
[350141438,1737649858407,-1263.57,0.00018425,2]
[350141439,1737649858417,-927.43,0.00018425,2]
[350141440,1737649858426,-500.0,0.00018425,2]
[350141441,1737649858436,-1727.96,0.00018425,2]
[350141442,1737649858445,-548.38,0.00018425,2]
[350141443,1737649858454,-2478.47,0.00018425,2]
[350141444,1737649858463,-505.2,0.00018425,2]
[350141445,1737649858473,-500.0,0.00018425,2]
[350141446,1737649858483,-655.25,0.00018425,2]
[350141447,1737649858492,-500.0,0.00018425,2]
[350141448,1737649858502,-871.19,0.00018425,2]
[350141449,1737649858515,-685.35,0.00018425,2]
[350141450,1737649858527,-510.83,0.00018425,2]
[350141451,1737649858536,-500.0,0.00018425,2]
[350141452,1737649858546,-752.05,0.00018425,2]
[350141453,1737649858557,-500.0,0.00018425,2]
[350141454,1737649858566,-2502.39,0.00018425,2]
[350141455,1737649858575,-150.48552248,0.00018426,2]
[350141456,1737649858585,-500.0,0.00018426,2]
[350141457,1737649858595,-500.0,0.00018426,2]
[350141458,1737649858604,-500.0,0.00018426,2]
[350141459,1737649858613,-575.37,0.00018426,2]
[350141460,1737649858623,-500.0,0.00018426,2]
[350141461,1737649858632,-500.0,0.00018426,2]
[350141462,1737649858642,-500.0,0.00018426,2]
[350141463,1737649858651,-500.0,0.00018426,2]
[350141464,1737649858660,-500.0,0.00018426,2]
[350141465,1737649858669,-203.67332835,0.00018426,2]
[350141466,1737649858679,-500.0,0.00018426,2]
[350141467,1737649858688,-500.0,0.00018426,2]
[350141468,1737649858698,-500.0,0.00018426,2]
[350141469,1737649858707,-500.0,0.00018426,2]
[350141470,1737649858717,-500.0,0.00018426,2]
[350141471,1737649858727,-631.41959943,0.00018426,2]
[350141472,1737649858736,-500.0,0.00018426,2]
[350141473,1737649858746,-500.0,0.00018426,2]
[350141474,1737649858755,-500.0,0.00018426,2]
[350141475,1737649858765,-500.0,0.00018426,2]
[350141476,1737649858776,-500.0,0.00018426,2]
[350141477,1737649858785,-500.0,0.00018426,2]
[350141478,1737649858795,-285.42343054,0.00018426,2]
[350141479,1737649858806,-500.0,0.00018426,2]
[350141480,1737649858815,-500.0,0.00018426,2]
[350141481,1737649858825,-500.0,0.00018426,2]
[350141482,1737649858834,-597.93,0.00018426,2]
[350141483,1737649858844,-500.0,0.00018426,2]
[350141484,1737649858854,-500.0,0.00018426,2]
[350141485,1737649858864,-500.0,0.00018426,2]
[350141486,1737649858873,-500.0,0.00018426,2]
[350141487,1737649858883,-500.0,0.00018426,2]
[350141488,1737649858892,-500.0,0.00018426,2]
[350141489,1737649858902,-500.0,0.00018426,2]
[350141490,1737649858911,-500.0,0.00018426,2]
[350141491,1737649858921,-500.0,0.00018426,2]
[350141492,1737649858930,-2076.69,0.00018426,2]
[350141493,1737649858940,-628.58,0.00018426,2]
[350141494,1737649858949,-500.0,0.00018426,2]
[350141495,1737649858959,-500.0,0.00018426,2]
[350141496,1737649858969,-500.0,0.00018426,2]
[350141497,1737649858978,-1165.29,0.00018426,2]
[350141498,1737649858988,-500.0,0.00018426,2]
[350141499,1737649858997,-500.0,0.00018426,2]
[350141500,1737649859007,-658.97,0.00018426,2]
[350141501,1737649859016,-500.0,0.00018426,2]
[350141502,1737649859027,-500.0,0.00018426,2]
[350141503,1737649859036,-500.0,0.00018426,2]
[350141504,1737649859045,-500.0,0.00018426,2]
[350141505,1737649859055,-811.15,0.00018426,2]
[350141506,1737649859064,-500.0,0.00018426,2]
[350141507,1737649859074,-500.0,0.00018426,2]
[350141508,1737649859084,-829.28,0.00018426,2]
[350141509,1737649859094,-500.0,0.00018426,2]
[350141510,1737649859103,-736.71,0.00018426,2]
[350141511,1737649859112,-500.0,0.00018426,2]
[350141512,1737649859121,-500.0,0.00018426,2]
[350141513,1737649859130,-500.0,0.00018426,2]
[350141514,1737649859139,-500.0,0.00018426,2]
[350141515,1737649859148,-500.0,0.00018426,2]
[350141516,1737649859158,-500.0,0.00018426,2]
[350141517,1737649859168,-500.0,0.00018426,2]
[350141518,1737649859178,-800.07,0.00018426,2]
[350141519,1737649859187,-530.33,0.00018426,2]
[350141520,1737649859197,-500.0,0.00018426,2]
[350141521,1737649859206,-500.0,0.00018426,2]
[350141522,1737649859216,-500.0,0.00018426,2]
[350141523,1737649859225,-500.0,0.00018426,2]
[350141524,1737649859235,-874.38,0.00018426,2]
[350141525,1737649859244,-500.0,0.00018426,2]
[350141526,1737649859253,-500.0,0.00018426,2]
[350141527,1737649859355,-500.0,0.00018426,2]
[350141528,1737649859374,-152.524198,0.00018426,2]
[350141529,1737649859384,-500.0,0.00018426,2]
[350141530,1737649859394,-500.0,0.00018426,2]
[350141531,1737649859403,-174.602356,0.00018426,2]
[350141532,1737649859412,-501.921553,0.00018426,2]
[350141533,1737649859422,-500.0,0.00018426,2]
[350141534,1737649859431,-501.921553,0.00018426,2]
[350141535,1737649859440,-495.833193,0.00018426,2]
[350141536,1737649859449,-495.833193,0.00018426,2]
[350141537,1737649859459,-151.0,0.00018426,2]
[350141538,1737649859468,-500.0,0.00018426,2]
[350141539,1737649859478,-165.116371,0.00018426,2]
[350141540,1737649859488,-500.0,0.00018426,2]
[350141541,1737649859497,-426.72729984,0.00018426,2]
[350141542,1737649859507,-500.0,0.00018426,2]
[350141543,1737649859518,-151.0,0.00018426,2]
[350141544,1737649859530,-642.43,0.00018426,2]
[350141545,1737649859540,-500.0,0.00018426,2]
[350141546,1737649859549,-500.0,0.00018426,2]
[350141547,1737649859559,-500.0,0.00018426,2]
[350141548,1737649859568,-151.0,0.00018426,2]
[350141549,1737649859578,-517.21,0.00018426,2]
[350141550,1737649859587,-500.0,0.00018426,2]
[350141551,1737649859598,-500.0,0.00018426,2]
[350141552,1737649859607,-151.0,0.00018426,2]
[350141553,1737649859617,-1130.41,0.00018426,2]
[350141554,1737649859626,-151.0,0.00018426,2]
[350141555,1737649859635,-2840.42,0.00018426,2]
[350141556,1737649859644,-471.6686078,0.00018426,2]
[350141557,1737649859654,-500.0,0.00018426,2]
[350141558,1737649859663,-151.0,0.00018426,2]
[350141559,1737649859673,-152.638543,0.00018426,2]
[350141560,1737649859682,-500.0,0.00018426,2]
[350141561,1737649859693,-500.0,0.00018426,2]
[350141562,1737649859704,-569.84,0.00018426,2]
[350141563,1737649859714,-576.33,0.00018426,2]
[350141564,1737649859723,-500.0,0.00018426,2]
[350141565,1737649859732,-872.83,0.00018426,2]
[350141566,1737649859742,-535.66344733,0.00018426,2]
[350141567,1737649859751,-602.72695615,0.00018427,2]
[350141568,1737649859760,-375.32138894,0.00018427,2]
[350141569,1737649859770,-500.0,0.00018427,2]
[350141570,1737649859779,-500.0,0.00018427,2]
[350141571,1737649859788,-500.0,0.00018427,2]
[350141572,1737649859798,-500.0,0.00018427,2]
[350141573,1737649859807,-500.0,0.00018427,2]
[350141574,1737649859817,-500.0,0.00018427,2]
[350141575,1737649859827,-500.0,0.00018428,2]
[350141576,1737649859838,-1062.07364942,0.00018521,2]
[350141577,1737649859851,-1313.1570865,0.00018529,2]
[350141578,1737649859861,-981.79,0.00018572,2]
[350141579,1737649859871,-385.8655271,0.0001862,2]
[350141580,1737649859880,-500.0,0.0001863,2]
[350141581,1737649859889,-521.44,0.0001863,2]
[350141582,1737649859899,-1279.29,0.0001863,2]
[350141583,1737649859908,-510.28,0.0001863,2]
[350141584,1737649859918,-947.08,0.0001863,2]
[350141585,1737649859927,-553.6,0.0001863,2]
[350141586,1737649859937,-847.08,0.0001863,2]
[350141587,1737649859948,-950.19,0.0001863,2]
[350141588,1737649859957,-595.85,0.0001863,2]
[350141589,1737649859967,-535.73,0.0001863,2]
[350141590,1737649859977,-1421.67,0.0001863,2]
[350141591,1737649859987,-500.0,0.0001863,2]
[350141592,1737649859996,-244.0,0.0001863,2]
[350141593,1737649860005,-1179.67,0.0001863,2]
[350141594,1737649860015,-500.0,0.0001863,2]
[350141595,1737649860025,-1476.14,0.0001863,2]
[350141596,1737649860035,-977.58,0.0001863,2]
[350141597,1737649860044,-578.01,0.0001863,2]
[350141598,1737649860054,-500.0,0.0001863,2]
[350141599,1737649860064,-564.29962791,0.0001863,2]
[350141600,1737649860074,-1107.03,0.0001863,2]
[350141601,1737649860083,-500.0,0.0001863,2]
[350141602,1737649860093,-502.76,0.0001863,2]
[350141603,1737649860102,-500.0,0.0001863,2]
[350141604,1737649860112,-355.66,0.00018687,2]
[350141605,1737649860122,-452.764009,0.00018698,2]
[350141606,1737649860131,-500.0,0.00018698,2]
[350141607,1737649860141,-505.42,0.00018698,2]
[350141608,1737649860151,-278.061044,0.00018698,2]
[350141609,1737649860160,-793.57,0.00018698,2]
[350141610,1737649860170,-500.0,0.00018698,2]
[350141611,1737649860179,-1666.21,0.00018698,2]
[350141612,1737649860189,-633.72,0.00018698,2]
[350141613,1737649860199,-784.7,0.00018698,2]
[350141614,1737649860208,-1227.74,0.00018698,2]
[350141615,1737649860218,-811.43,0.00018698,2]
[350141616,1737649860227,-1177.29,0.00018698,2]
[350141617,1737649860237,-500.0,0.00018698,2]
[350141618,1737649860247,-508.16,0.00018698,2]
[350141619,1737649860257,-1189.48,0.00018698,2]
[350141620,1737649860267,-593.34,0.00018698,2]
[350141621,1737649860277,-911.17,0.00018698,2]
[350141622,1737649860286,-534.84,0.00018698,2]